[Event "Titled Tuesday Blitz February 21 Late 2023"]
[White "Stachanczyk, Jacek"]
[Black "Mitrovic, Darko R"]
[WhiteFideId "1116657"]
[BlackFideId "927023"]
[WhiteElo "2147"]
[BlackElo "2220"]
[Result "1-0"]
[Round "04"]
[TimeControl "180+2"]
[Date "2023.02.21"]
[WhiteClock "0:00:52"]
[BlackClock "0:00:05"]

1. e4 {[%clk 0:03:00]}  c6 {[%clk 0:02:52]} 2. Nf3 {[%clk 0:02:57]}  d5 {[%clk 0:02:50]} 3. exd5 {[%clk 0:02:58]}  cxd5 {[%clk 0:02:51]} 4. Ne5 {[%clk 0:02:58]}  Nf6 {[%clk 0:02:47]} 5. d4 {[%clk 0:02:56]}  Nc6 {[%clk 0:02:43]} 6. Bb5 {[%clk 0:02:51]}  Bd7 {[%clk 0:02:40]} 7. Nxd7 {[%clk 0:02:49]}  Qxd7 {[%clk 0:02:37]} 8. O-O {[%clk 0:02:48]}  e6 {[%clk 0:02:32]} 9. c3 {[%clk 0:02:47]}  Be7 {[%clk 0:02:29]} 10. Qe2 {[%clk 0:02:46]}  O-O {[%clk 0:02:27]} 11. Nd2 {[%clk 0:02:43]}  a6 {[%clk 0:02:23]} 12. Bd3 {[%clk 0:02:43]}  b5 {[%clk 0:02:22]} 13. Nf3 {[%clk 0:02:43]}  b4 {[%clk 0:02:06]} 14. Ne5 {[%clk 0:02:42]}  Qb7 {[%clk 0:01:59]} 15. Bg5 {[%clk 0:02:36]}  h6 {[%clk 0:01:47]} 16. Bh4 {[%clk 0:02:21]}  a5 {[%clk 0:01:33]} 17. Rab1 {[%clk 0:01:44]}  bxc3 {[%clk 0:00:40]} 18. bxc3 {[%clk 0:01:42]}  Qc7 {[%clk 0:00:40]} 19. Rbc1 {[%clk 0:01:25]}  Nxe5 {[%clk 0:00:35]} 20. dxe5 {[%clk 0:01:26]}  Ne8 {[%clk 0:00:32]} 21. Bxe7 {[%clk 0:01:23]}  Qxe7 {[%clk 0:00:32]} 22. c4 {[%clk 0:01:23]}  Nc7 {[%clk 0:00:30]} 23. cxd5 {[%clk 0:01:22]}  Nxd5 {[%clk 0:00:27]} 24. Be4 {[%clk 0:01:23]}  Rac8 {[%clk 0:00:20]} 25. Bxd5 {[%clk 0:01:21]}  exd5 {[%clk 0:00:20]} 26. f4 {[%clk 0:01:20]}  g6 {[%clk 0:00:15]} 27. Qb5 {[%clk 0:01:17]}  Qe6 {[%clk 0:00:13]} 28. Qxa5 {[%clk 0:01:15]}  Rxc1 {[%clk 0:00:11]} 29. Rxc1 {[%clk 0:01:16]}  Qf5 {[%clk 0:00:09]} 30. Qd2 {[%clk 0:01:13]}  Qe4 {[%clk 0:00:08]} 31. Re1 {[%clk 0:01:13]}  Qc4 {[%clk 0:00:08]} 32. Rc1 {[%clk 0:01:08]}  Qe4 {[%clk 0:00:08]} 33. Kf2 {[%clk 0:01:05]}  d4 {[%clk 0:00:07]} 34. Re1 {[%clk 0:01:04]}  Qd5 {[%clk 0:00:07]} 35. Qd3 {[%clk 0:01:03]}  Kg7 {[%clk 0:00:07]} 36. Re4 {[%clk 0:01:00]}  Qxa2+ {[%clk 0:00:06]} 37. Kf3 {[%clk 0:00:59]}  Rb8 {[%clk 0:00:07]} 38. Qxd4 {[%clk 0:00:54]}  Rb3+ {[%clk 0:00:06]} 39. Re3 {[%clk 0:00:54]}  Rxe3+ {[%clk 0:00:05]} 40. Qxe3 {[%clk 0:00:55]}  Qd5+ {[%clk 0:00:05]} 41. Kf2 {[%clk 0:00:55]}  Qa2+ {[%clk 0:00:05]} 42. Kf3 {[%clk 0:00:55]}  Qd5+ {[%clk 0:00:05]} 43. Qe4 {[%clk 0:00:56]}  Qd1+ {[%clk 0:00:05]} 44. Qe2 {[%clk 0:00:55]}  Qd5+ {[%clk 0:00:05]} 45. Kf2 {[%clk 0:00:55]}  Qd4+ {[%clk 0:00:05]} 46. Qe3 {[%clk 0:00:55]}  Qb2+ {[%clk 0:00:06]} 47. Kf3 {[%clk 0:00:55]}  Qb7+ {[%clk 0:00:05]} 48. Kg3 {[%clk 0:00:55]}  Qb1 {[%clk 0:00:06]} 49. h3 {[%clk 0:00:55]}  Qf5 {[%clk 0:00:06]} 50. Kh2 {[%clk 0:00:55]}  Qb1 {[%clk 0:00:06]} 51. Qd4 {[%clk 0:00:53]}  Qf5 {[%clk 0:00:06]} 52. e6+ {[%clk 0:00:53]}  f6 {[%clk 0:00:05]} 53. e7 {[%clk 0:00:53]}  Qe6 {[%clk 0:00:05]} 54. Qd8 {[%clk 0:00:50]}  h5 {[%clk 0:00:04]} 55. e8=Q {[%clk 0:00:48]}  Qxe8 {[%clk 0:00:04]} 56. Qxe8 {[%clk 0:00:49]}  h4 {[%clk 0:00:04]} 57. g3 {[%clk 0:00:48]}  hxg3+ {[%clk 0:00:04]} 58. Kxg3 {[%clk 0:00:49]}  g5 {[%clk 0:00:04]} 59. Kg4 {[%clk 0:00:50]}  gxf4 {[%clk 0:00:04]} 60. Kf5 {[%clk 0:00:51]}  f3 {[%clk 0:00:05]} 61. Qg6+ {[%clk 0:00:51]}  Kh8 {[%clk 0:00:05]} 62. Kxf6 {[%clk 0:00:51]}  f2 {[%clk 0:00:05]} 63. Qg7# {[%clk 0:00:52]} 1-0


[Site "https://www.chess.com"]

[Event "Titled Tuesday Blitz February 21 Late 2023"]
[White "Better_Chess_Faster"]
[Black "Clawitter, Craig"]
[BlackFideId "2023105"]
[WhiteElo "1982"]
[BlackElo "2050"]
[Result "0-1"]
[Round "04"]
[TimeControl "180+2"]
[Date "2023.02.21"]
[WhiteClock "0:00:47"]
[BlackClock "0:00:13"]

1. c4 {[%clk 0:03:00]}  e6 {[%clk 0:00:47]} 2. g3 {[%clk 0:02:58]}  d5 {[%clk 0:00:47]} 3. Nf3 {[%clk 0:02:56]}  Nf6 {[%clk 0:00:48]} 4. Bg2 {[%clk 0:02:56]}  Be7 {[%clk 0:00:47]} 5. d4 {[%clk 0:02:56]}  O-O {[%clk 0:00:48]} 6. O-O {[%clk 0:02:57]}  dxc4 {[%clk 0:00:48]} 7. Qc2 {[%clk 0:02:57]}  a6 {[%clk 0:00:49]} 8. a4 {[%clk 0:02:56]}  Bd7 {[%clk 0:00:48]} 9. Qxc4 {[%clk 0:02:56]}  Bc6 {[%clk 0:00:49]} 10. Bf4 {[%clk 0:02:55]}  a5 {[%clk 0:00:47]} 11. Nc3 {[%clk 0:02:55]}  Na6 {[%clk 0:00:48]} 12. Rfd1 {[%clk 0:02:49]}  Nb4 {[%clk 0:00:46]} 13. Qb3 {[%clk 0:02:46]}  b6 {[%clk 0:00:40]} 14. Ne5 {[%clk 0:02:35]}  Bxg2 {[%clk 0:00:38]} 15. Kxg2 {[%clk 0:02:36]}  Nfd5 {[%clk 0:00:31]} 16. Bd2 {[%clk 0:02:33]}  Bd6 {[%clk 0:00:15]} 17. Nc4 {[%clk 0:02:29]}  Be7 {[%clk 0:00:11]} 18. e4 {[%clk 0:02:20]}  Nxc3 {[%clk 0:00:08]} 19. bxc3 {[%clk 0:02:19]}  Nc6 {[%clk 0:00:09]} 20. Ne3 {[%clk 0:02:16]}  Kh8 {[%clk 0:00:07]} 21. Nc4 {[%clk 0:02:07]}  Qe8 {[%clk 0:00:06]} 22. d5 {[%clk 0:02:02]}  exd5 {[%clk 0:00:06]} 23. exd5 {[%clk 0:02:03]}  Nd8 {[%clk 0:00:06]} 24. Re1 {[%clk 0:02:02]}  Nb7 {[%clk 0:00:06]} 25. Ne5 {[%clk 0:02:01]}  Bd6 {[%clk 0:00:05]} 26. Ng6+ {[%clk 0:01:58]}  hxg6 {[%clk 0:00:06]} 27. Rxe8 {[%clk 0:01:58]}  Raxe8 {[%clk 0:00:07]} 28. Re1 {[%clk 0:01:56]}  Nc5 {[%clk 0:00:07]} 29. Qc4 {[%clk 0:01:54]}  Rxe1 {[%clk 0:00:07]} 30. Bxe1 {[%clk 0:01:54]}  Re8 {[%clk 0:00:07]} 31. Bd2 {[%clk 0:01:53]}  Re4 {[%clk 0:00:08]} 32. Qa2 {[%clk 0:01:38]}  Rxa4 {[%clk 0:00:08]} 33. Qc2 {[%clk 0:01:32]}  Re4 {[%clk 0:00:08]} 34. Be3 {[%clk 0:01:30]}  Re5 {[%clk 0:00:08]} 35. Bxc5 {[%clk 0:01:28]}  Bxc5 {[%clk 0:00:09]} 36. f4 {[%clk 0:01:26]}  Re7 {[%clk 0:00:09]} 37. Qd3 {[%clk 0:01:24]}  Re3 {[%clk 0:00:09]} 38. Qd2 {[%clk 0:01:24]}  Kg8 {[%clk 0:00:09]} 39. c4 {[%clk 0:01:18]}  a4 {[%clk 0:00:09]} 40. g4 {[%clk 0:01:15]}  a3 {[%clk 0:00:09]} 41. f5 {[%clk 0:01:14]}  Rb3 {[%clk 0:00:10]} 42. Qd1 {[%clk 0:01:05]}  Rb2+ {[%clk 0:00:09]} 43. Kg3 {[%clk 0:01:03]}  a2 {[%clk 0:00:10]} 44. Qa1 {[%clk 0:01:01]}  Bd4 {[%clk 0:00:08]} 45. fxg6 {[%clk 0:00:47]}  Rg2+ {[%clk 0:00:08]} 46. Kxg2 {[%clk 0:00:47]}  Bxa1 {[%clk 0:00:08]} 47. gxf7+ {[%clk 0:00:47]}  Kxf7 {[%clk 0:00:09]} 48. h4 {[%clk 0:00:46]}  Bc3 {[%clk 0:00:10]} 49. h5 {[%clk 0:00:47]}  a1=Q {[%clk 0:00:10]} 50. g5 {[%clk 0:00:48]}  Qb2+ {[%clk 0:00:11]} 51. Kf3 {[%clk 0:00:47]}  Qb3 {[%clk 0:00:11]} 52. h6 {[%clk 0:00:47]}  gxh6 {[%clk 0:00:12]} 53. gxh6 {[%clk 0:00:47]}  Bg7+ {[%clk 0:00:12]} 54. Ke4 {[%clk 0:00:48]}  Bxh6 {[%clk 0:00:13]} 55. Kd4 {[%clk 0:00:47]}  Qe3# {[%clk 0:00:13]} 0-1


[Site "https://www.chess.com"]

[Event "Titled Tuesday Blitz February 21 Late 2023"]
[White "Huang, Alex"]
[Black "tandercat"]
[WhiteFideId "4302508"]
[WhiteElo "2009"]
[BlackElo "1858"]
[Result "0-1"]
[Round "04"]
[TimeControl "180+2"]
[Date "2023.02.21"]
[WhiteClock "0:00:12"]
[BlackClock "0:00:08"]

1. d4 {[%clk 0:03:00]}  d5 {[%clk 0:02:59]} 2. Bf4 {[%clk 0:03:01]}  Nf6 {[%clk 0:02:58]} 3. e3 {[%clk 0:03:01]}  e6 {[%clk 0:02:58]} 4. Nd2 {[%clk 0:02:59]}  c5 {[%clk 0:02:57]} 5. c3 {[%clk 0:02:59]}  Nc6 {[%clk 0:02:57]} 6. Ngf3 {[%clk 0:02:59]}  Bd6 {[%clk 0:02:56]} 7. Bg3 {[%clk 0:03:00]}  O-O {[%clk 0:02:50]} 8. Bb5 {[%clk 0:03:00]}  a6 {[%clk 0:02:43]} 9. Bxc6 {[%clk 0:02:59]}  bxc6 {[%clk 0:02:43]} 10. Qa4 {[%clk 0:02:59]}  Qc7 {[%clk 0:02:32]} 11. Bxd6 {[%clk 0:02:58]}  Qxd6 {[%clk 0:02:32]} 12. Qa3 {[%clk 0:02:58]}  Rd8 {[%clk 0:02:32]} 13. dxc5 {[%clk 0:02:50]}  Qe7 {[%clk 0:02:28]} 14. O-O {[%clk 0:02:49]}  e5 {[%clk 0:02:27]} 15. b4 {[%clk 0:02:48]}  Bg4 {[%clk 0:02:18]} 16. h3 {[%clk 0:02:46]}  Bh5 {[%clk 0:02:16]} 17. Rfe1 {[%clk 0:02:46]}  h6 {[%clk 0:02:10]} 18. Qa4 {[%clk 0:02:39]}  Qe6 {[%clk 0:02:05]} 19. Rac1 {[%clk 0:02:35]}  Bg6 {[%clk 0:01:45]} 20. Qb3 {[%clk 0:02:30]}  Bd3 {[%clk 0:01:44]} 21. a4 {[%clk 0:02:26]}  Rdb8 {[%clk 0:01:32]} 22. Qa3 {[%clk 0:02:12]}  a5 {[%clk 0:01:26]} 23. Nb3 {[%clk 0:02:01]}  axb4 {[%clk 0:01:22]} 24. cxb4 {[%clk 0:02:01]}  Ne4 {[%clk 0:01:19]} 25. Na5 {[%clk 0:01:58]}  Ba6 {[%clk 0:01:12]} 26. Qb2 {[%clk 0:01:38]}  f6 {[%clk 0:01:04]} 27. Nd2 {[%clk 0:01:37]}  Ng5 {[%clk 0:01:01]} 28. f4 {[%clk 0:01:26]}  Nxh3+ {[%clk 0:00:56]} 29. gxh3 {[%clk 0:01:14]}  Qxh3 {[%clk 0:00:56]} 30. Nf1 {[%clk 0:01:15]}  Bxf1 {[%clk 0:00:52]} 31. Rxf1 {[%clk 0:01:10]}  Rxa5 {[%clk 0:00:52]} 32. Qd2 {[%clk 0:00:58]}  Rxa4 {[%clk 0:00:49]} 33. fxe5 {[%clk 0:00:54]}  fxe5 {[%clk 0:00:43]} 34. Rb1 {[%clk 0:00:47]}  Rba8 {[%clk 0:00:40]} 35. Qf2 {[%clk 0:00:44]}  Ra2 {[%clk 0:00:35]} 36. Qf7+ {[%clk 0:00:43]}  Kh8 {[%clk 0:00:32]} 37. Rf2 {[%clk 0:00:31]}  Qg3+ {[%clk 0:00:31]} 38. Kf1 {[%clk 0:00:30]}  Qh3+ {[%clk 0:00:26]} 39. Kg1 {[%clk 0:00:30]}  Qxe3 {[%clk 0:00:21]} 40. Rf1 {[%clk 0:00:26]}  Qg3+ {[%clk 0:00:20]} 41. Kh1 {[%clk 0:00:25]}  Qh3+ {[%clk 0:00:19]} 42. Kg1 {[%clk 0:00:25]}  Qg3+ {[%clk 0:00:19]} 43. Kh1 {[%clk 0:00:26]}  Rxf2 {[%clk 0:00:19]} 44. Qxf2 {[%clk 0:00:24]}  Qxf2 {[%clk 0:00:17]} 45. Rxf2 {[%clk 0:00:24]}  Kg8 {[%clk 0:00:17]} 46. Kg2 {[%clk 0:00:22]}  e4 {[%clk 0:00:17]} 47. Rd2 {[%clk 0:00:20]}  Rb8 {[%clk 0:00:17]} 48. Rb2 {[%clk 0:00:19]}  Kf7 {[%clk 0:00:16]} 49. Kf2 {[%clk 0:00:20]}  d4 {[%clk 0:00:14]} 50. Ke2 {[%clk 0:00:19]}  Ke6 {[%clk 0:00:15]} 51. Kf2 {[%clk 0:00:18]}  Ke5 {[%clk 0:00:15]} 52. Ke2 {[%clk 0:00:16]}  g5 {[%clk 0:00:15]} 53. Rb1 {[%clk 0:00:16]}  g4 {[%clk 0:00:14]} 54. Kf2 {[%clk 0:00:16]}  Kf4 {[%clk 0:00:13]} 55. Kg2 {[%clk 0:00:15]}  d3 {[%clk 0:00:13]} 56. Rf1+ {[%clk 0:00:15]}  Ke3 {[%clk 0:00:12]} 57. Re1+ {[%clk 0:00:15]}  Kd4 {[%clk 0:00:12]} 58. Rd1 {[%clk 0:00:15]}  e3 {[%clk 0:00:11]} 59. Kg3 {[%clk 0:00:15]}  Rxb4 {[%clk 0:00:11]} 60. Kf4 {[%clk 0:00:14]}  e2 {[%clk 0:00:11]} 61. Re1 {[%clk 0:00:14]}  Rb2 {[%clk 0:00:09]} 62. Kf5 {[%clk 0:00:11]}  Rd2 {[%clk 0:00:09]} 63. Kg6 {[%clk 0:00:12]}  Rd1 {[%clk 0:00:09]} 64. Rxd1 {[%clk 0:00:07]}  exd1=Q {[%clk 0:00:09]} 65. Kxh6 {[%clk 0:00:08]}  Kxc5 {[%clk 0:00:09]} 66. Kg5 {[%clk 0:00:09]}  g3 {[%clk 0:00:10]} 67. Kf4 {[%clk 0:00:09]}  g2 {[%clk 0:00:10]} 68. Ke5 {[%clk 0:00:10]}  g1=Q {[%clk 0:00:10]} 69. Ke6 {[%clk 0:00:11]}  Qe2+ {[%clk 0:00:09]} 70. Kd7 {[%clk 0:00:12]}  Qg7+ {[%clk 0:00:08]} 71. Kc8 {[%clk 0:00:12]}  Qe8# {[%clk 0:00:08]} 0-1


[Site "https://www.chess.com"]

[Event "Titled Tuesday Blitz February 21 Late 2023"]
[White "Stoyanov, Tsvetan"]
[Black "Paravyan, David"]
[WhiteFideId "2917173"]
[BlackFideId "4194985"]
[WhiteElo "2454"]
[BlackElo "2601"]
[Result "0-1"]
[Round "05"]
[TimeControl "180+2"]
[Date "2023.02.21"]
[WhiteClock "0:00:03"]
[BlackClock "0:00:07"]

1. c4 {[%clk 0:03:00]}  c5 {[%clk 0:02:58]} 2. Nf3 {[%clk 0:03:00]}  Nf6 {[%clk 0:02:57]} 3. Nc3 {[%clk 0:03:00]}  Nc6 {[%clk 0:02:57]} 4. e3 {[%clk 0:03:00]}  e5 {[%clk 0:02:55]} 5. d4 {[%clk 0:03:01]}  exd4 {[%clk 0:02:55]} 6. exd4 {[%clk 0:03:01]}  d5 {[%clk 0:02:55]} 7. Bg5 {[%clk 0:02:50]}  Be7 {[%clk 0:02:36]} 8. cxd5 {[%clk 0:02:21]}  Nxd5 {[%clk 0:02:33]} 9. Nxd5 {[%clk 0:02:21]}  Bxg5 {[%clk 0:01:49]} 10. dxc5 {[%clk 0:01:01]}  O-O {[%clk 0:01:23]} 11. Be2 {[%clk 0:00:50]}  Qa5+ {[%clk 0:01:06]} 12. Kf1 {[%clk 0:00:51]}  Bh6 {[%clk 0:01:00]} 13. Qc2 {[%clk 0:00:20]}  Be6 {[%clk 0:00:57]} 14. Nc3 {[%clk 0:00:15]}  Qxc5 {[%clk 0:00:51]} 15. a3 {[%clk 0:00:16]}  Rad8 {[%clk 0:00:47]} 16. h3 {[%clk 0:00:15]}  Nd4 {[%clk 0:00:44]} 17. Nxd4 {[%clk 0:00:14]}  Rxd4 {[%clk 0:00:44]} 18. Rd1 {[%clk 0:00:10]}  Rfd8 {[%clk 0:00:43]} 19. Qa4 {[%clk 0:00:04]}  Kf8 {[%clk 0:00:28]} 20. Rxd4 {[%clk 0:00:04]}  Rxd4 {[%clk 0:00:28]} 21. Qb5 {[%clk 0:00:05]}  Qxb5 {[%clk 0:00:28]} 22. Bxb5 {[%clk 0:00:04]}  Bc1 {[%clk 0:00:28]} 23. Ke2 {[%clk 0:00:03]}  Bxb2 {[%clk 0:00:27]} 24. Na4 {[%clk 0:00:04]}  Bxa3 {[%clk 0:00:25]} 25. Ra1 {[%clk 0:00:04]}  Bb4 {[%clk 0:00:25]} 26. Ke3 {[%clk 0:00:04]}  Rd5 {[%clk 0:00:22]} 27. Bc4 {[%clk 0:00:03]}  Re5+ {[%clk 0:00:19]} 28. Kd4 {[%clk 0:00:03]}  Bd6 {[%clk 0:00:09]} 29. Nb2 {[%clk 0:00:03]}  a6 {[%clk 0:00:07]} 30. Nd3 {[%clk 0:00:04]}  Rf5 {[%clk 0:00:06]} 31. Bxe6 {[%clk 0:00:04]}  fxe6 {[%clk 0:00:07]} 32. Rb1 {[%clk 0:00:04]}  Rd5+ {[%clk 0:00:07]} 33. Ke4 {[%clk 0:00:04]}  Rb5 {[%clk 0:00:06]} 34. Rxb5 {[%clk 0:00:04]}  axb5 {[%clk 0:00:07]} 35. Kd4 {[%clk 0:00:04]}  Ke7 {[%clk 0:00:08]} 36. Nc1 {[%clk 0:00:04]}  Kd7 {[%clk 0:00:08]} 37. Nb3 {[%clk 0:00:04]}  Kc6 {[%clk 0:00:08]} 38. f3 {[%clk 0:00:03]}  g6 {[%clk 0:00:07]} 39. Ke4 {[%clk 0:00:04]}  b4 {[%clk 0:00:05]} 40. Nd4+ {[%clk 0:00:04]}  Kc5 {[%clk 0:00:06]} 41. Kd3 {[%clk 0:00:03]}  Kd5 {[%clk 0:00:06]} 42. Nb3 {[%clk 0:00:03]}  Bc5 {[%clk 0:00:05]} 43. Nd2 {[%clk 0:00:03]}  Bd4 {[%clk 0:00:05]} 44. Nb3 {[%clk 0:00:03]}  Bb6 {[%clk 0:00:04]} 45. Nd2 {[%clk 0:00:03]}  Ba7 {[%clk 0:00:05]} 46. Nb3 {[%clk 0:00:04]}  Bf2 {[%clk 0:00:05]} 47. Nd2 {[%clk 0:00:04]}  Bd4 {[%clk 0:00:05]} 48. Nb3 {[%clk 0:00:04]}  Bc3 {[%clk 0:00:06]} 49. Na5 {[%clk 0:00:04]}  b6 {[%clk 0:00:06]} 50. Nb3 {[%clk 0:00:04]}  h5 {[%clk 0:00:07]} 51. Nc1 {[%clk 0:00:04]}  Kc5 {[%clk 0:00:07]} 52. Nb3+ {[%clk 0:00:04]}  Kb5 {[%clk 0:00:08]} 53. Nc1 {[%clk 0:00:04]}  Ka4 {[%clk 0:00:08]} 54. Kc2 {[%clk 0:00:05]}  g5 {[%clk 0:00:06]} 55. Nd3 {[%clk 0:00:04]}  Ka3 {[%clk 0:00:05]} 56. Nc1 {[%clk 0:00:05]}  Ka4 {[%clk 0:00:05]} 57. Nb3 {[%clk 0:00:05]}  Kb5 {[%clk 0:00:05]} 58. Nc1 {[%clk 0:00:05]}  Kc4 {[%clk 0:00:05]} 59. Nb3 {[%clk 0:00:05]}  e5 {[%clk 0:00:06]} 60. Nc1 {[%clk 0:00:05]}  Kd4 {[%clk 0:00:06]} 61. Ne2+ {[%clk 0:00:05]}  Ke3 {[%clk 0:00:07]} 62. Ng3 {[%clk 0:00:05]}  Kf2 {[%clk 0:00:05]} 63. Nxh5 {[%clk 0:00:06]}  Kxg2 {[%clk 0:00:06]} 64. Nf6 {[%clk 0:00:06]}  Kxf3 {[%clk 0:00:06]} 65. Nh7 {[%clk 0:00:04]}  Kf4 {[%clk 0:00:05]} 66. Nf6 {[%clk 0:00:05]}  e4 {[%clk 0:00:06]} 67. Nd5+ {[%clk 0:00:05]}  Kf3 {[%clk 0:00:07]} 68. Nxb6 {[%clk 0:00:03]}  e3 {[%clk 0:00:07]} 0-1


[Site "https://www.chess.com"]

[Event "Titled Tuesday Blitz February 21 Late 2023"]
[White "Rorrer, Grayson"]
[Black "Tabatabaei, M. Amin"]
[WhiteFideId "30944996"]
[BlackFideId "12521213"]
[WhiteElo "2263"]
[BlackElo "2677"]
[Result "0-1"]
[Round "05"]
[TimeControl "180+2"]
[Date "2023.02.21"]
[WhiteClock "0:02:15"]
[BlackClock "0:02:29"]

1. e4 {[%clk 0:03:00]}  c6 {[%clk 0:02:59]} 2. d4 {[%clk 0:02:59]}  d5 {[%clk 0:02:59]} 3. exd5 {[%clk 0:03:00]}  cxd5 {[%clk 0:02:59]} 4. Bd3 {[%clk 0:03:01]}  Nc6 {[%clk 0:02:58]} 5. c3 {[%clk 0:03:01]}  e6 {[%clk 0:02:58]} 6. h3 {[%clk 0:03:01]}  Bd6 {[%clk 0:02:58]} 7. Nf3 {[%clk 0:03:02]}  Nge7 {[%clk 0:02:57]} 8. O-O {[%clk 0:03:02]}  O-O {[%clk 0:02:58]} 9. Re1 {[%clk 0:02:46]}  Ng6 {[%clk 0:02:54]} 10. Ng5 {[%clk 0:02:23]}  Qf6 {[%clk 0:02:39]} 11. Qh5 {[%clk 0:02:15]}  h6 {[%clk 0:02:37]} 12. Nxf7 {[%clk 0:02:15]}  Qxf7 {[%clk 0:02:29]} 0-1


[Site "https://www.chess.com"]

[Event "Titled Tuesday Blitz February 21 Late 2023"]
[White "Rustemov, Alexander"]
[Black "Bortnyk, Mykola"]
[WhiteFideId "4119002"]
[BlackFideId "14120836"]
[WhiteElo "2525"]
[BlackElo "2425"]
[Result "0-1"]
[Round "05"]
[TimeControl "180+2"]
[Date "2023.02.21"]
[WhiteClock "0:00:08"]
[BlackClock "0:00:05"]

1. d4 {[%clk 0:03:00]}  d6 {[%clk 0:02:55]} 2. Nf3 {[%clk 0:02:58]}  g6 {[%clk 0:02:54]} 3. c4 {[%clk 0:02:57]}  Bg7 {[%clk 0:02:53]} 4. Nc3 {[%clk 0:02:56]}  Nd7 {[%clk 0:02:48]} 5. g3 {[%clk 0:02:55]}  e6 {[%clk 0:02:44]} 6. Bg2 {[%clk 0:02:55]}  Ne7 {[%clk 0:02:45]} 7. O-O {[%clk 0:02:55]}  O-O {[%clk 0:02:45]} 8. e4 {[%clk 0:02:53]}  h6 {[%clk 0:02:43]} 9. Be3 {[%clk 0:02:51]}  b6 {[%clk 0:02:41]} 10. Qd2 {[%clk 0:02:49]}  Kh7 {[%clk 0:02:41]} 11. Rad1 {[%clk 0:02:43]}  Bb7 {[%clk 0:02:41]} 12. Rfe1 {[%clk 0:02:43]}  Rb8 {[%clk 0:02:39]} 13. b3 {[%clk 0:02:41]}  a6 {[%clk 0:02:36]} 14. h3 {[%clk 0:02:40]}  e5 {[%clk 0:02:30]} 15. dxe5 {[%clk 0:02:33]}  Nxe5 {[%clk 0:02:31]} 16. Nxe5 {[%clk 0:02:24]}  dxe5 {[%clk 0:02:30]} 17. Qxd8 {[%clk 0:02:19]}  Rbxd8 {[%clk 0:02:31]} 18. Nd5 {[%clk 0:02:17]}  Nxd5 {[%clk 0:02:18]} 19. cxd5 {[%clk 0:02:16]}  f5 {[%clk 0:02:18]} 20. f3 {[%clk 0:02:15]}  f4 {[%clk 0:02:10]} 21. gxf4 {[%clk 0:02:08]}  exf4 {[%clk 0:02:11]} 22. Bd4 {[%clk 0:02:06]}  Bxd4+ {[%clk 0:02:06]} 23. Rxd4 {[%clk 0:02:06]}  c6 {[%clk 0:02:07]} 24. d6 {[%clk 0:02:02]}  c5 {[%clk 0:01:59]} 25. Rd2 {[%clk 0:02:00]}  Bc8 {[%clk 0:01:51]} 26. e5 {[%clk 0:01:53]}  Be6 {[%clk 0:01:48]} 27. Bf1 {[%clk 0:01:50]}  Rf5 {[%clk 0:01:38]} 28. Bxa6 {[%clk 0:01:47]}  Rg5+ {[%clk 0:01:38]} 29. Kf2 {[%clk 0:01:42]}  Bxh3 {[%clk 0:01:34]} 30. Bf1 {[%clk 0:01:29]}  Be6 {[%clk 0:01:33]} 31. Bc4 {[%clk 0:01:27]}  Bh3 {[%clk 0:01:33]} 32. Re4 {[%clk 0:01:18]}  Rg2+ {[%clk 0:01:08]} 33. Ke1 {[%clk 0:01:17]}  Rg1+ {[%clk 0:01:03]} 34. Ke2 {[%clk 0:01:18]}  Bf5 {[%clk 0:00:55]} 35. Rxf4 {[%clk 0:01:15]}  Kg7 {[%clk 0:00:37]} 36. Ke3 {[%clk 0:01:11]}  Re1+ {[%clk 0:00:35]} 37. Re2 {[%clk 0:01:08]}  Rxe2+ {[%clk 0:00:35]} 38. Bxe2 {[%clk 0:01:05]}  Re8 {[%clk 0:00:33]} 39. Rxf5 {[%clk 0:01:05]}  gxf5 {[%clk 0:00:33]} 40. Kf4 {[%clk 0:00:57]}  h5 {[%clk 0:00:33]} 41. Kxf5 {[%clk 0:00:49]}  h4 {[%clk 0:00:28]} 42. d7 {[%clk 0:00:48]}  Rf8+ {[%clk 0:00:29]} 43. Ke6 {[%clk 0:00:30]}  h3 {[%clk 0:00:28]} 44. Bf1 {[%clk 0:00:31]}  h2 {[%clk 0:00:29]} 45. Bg2 {[%clk 0:00:31]}  b5 {[%clk 0:00:28]} 46. Ke7 {[%clk 0:00:29]}  c4 {[%clk 0:00:14]} 47. bxc4 {[%clk 0:00:25]}  bxc4 {[%clk 0:00:15]} 48. e6 {[%clk 0:00:25]}  c3 {[%clk 0:00:13]} 49. Kd6 {[%clk 0:00:25]}  c2 {[%clk 0:00:11]} 50. e7 {[%clk 0:00:26]}  Rf6+ {[%clk 0:00:12]} 51. Kd5 {[%clk 0:00:18]}  c1=Q {[%clk 0:00:13]} 52. e8=Q {[%clk 0:00:13]}  Qc6+ {[%clk 0:00:12]} 53. Kd4 {[%clk 0:00:11]}  Rd6+ {[%clk 0:00:13]} 54. Ke5 {[%clk 0:00:11]}  Qc5+ {[%clk 0:00:08]} 55. Kf4 {[%clk 0:00:11]}  Rf6+ {[%clk 0:00:06]} 56. Kg3 {[%clk 0:00:12]}  Qd6+ {[%clk 0:00:04]} 57. Kf2 {[%clk 0:00:08]}  Qd2+ {[%clk 0:00:05]} 58. Kg3 {[%clk 0:00:09]}  Rg6+ {[%clk 0:00:05]} 59. Kh4 {[%clk 0:00:08]}  Qh6# {[%clk 0:00:05]} 0-1


[Site "https://www.chess.com"]

[Event "Titled Tuesday Blitz February 21 Late 2023"]
[White "Golubka, Petro"]
[Black "Vachier-Lagrave, Maxime"]
[WhiteFideId "14114224"]
[BlackFideId "623539"]
[WhiteElo "2371"]
[BlackElo "2742"]
[Result "0-1"]
[Round "05"]
[TimeControl "180+2"]
[Date "2023.02.21"]
[WhiteClock "0:00:33"]
[BlackClock "0:00:25"]

1. d4 {[%clk 0:02:56]}  Nf6 {[%clk 0:02:58]} 2. c4 {[%clk 0:02:57]}  e6 {[%clk 0:02:58]} 3. a3 {[%clk 0:02:52]}  c5 {[%clk 0:02:56]} 4. e3 {[%clk 0:02:52]}  d5 {[%clk 0:02:51]} 5. Nf3 {[%clk 0:02:51]}  cxd4 {[%clk 0:02:51]} 6. exd4 {[%clk 0:02:51]}  Be7 {[%clk 0:02:42]} 7. Bg5 {[%clk 0:02:48]}  O-O {[%clk 0:02:38]} 8. Nc3 {[%clk 0:02:48]}  dxc4 {[%clk 0:02:35]} 9. Bxc4 {[%clk 0:02:47]}  Nbd7 {[%clk 0:02:35]} 10. Bb3 {[%clk 0:02:46]}  h6 {[%clk 0:02:32]} 11. Bh4 {[%clk 0:02:36]}  Nb6 {[%clk 0:02:25]} 12. O-O {[%clk 0:02:34]}  Bd7 {[%clk 0:02:24]} 13. Qd3 {[%clk 0:02:30]}  Rc8 {[%clk 0:01:52]} 14. Ne5 {[%clk 0:02:20]}  Bc6 {[%clk 0:01:25]} 15. Rad1 {[%clk 0:01:54]}  Re8 {[%clk 0:01:18]} 16. Rfe1 {[%clk 0:01:48]}  Nbd5 {[%clk 0:01:14]} 17. Bg3 {[%clk 0:01:13]}  Qb6 {[%clk 0:01:01]} 18. Nxc6 {[%clk 0:01:07]}  Qxb3 {[%clk 0:00:48]} 19. Nxa7 {[%clk 0:01:06]}  Rcd8 {[%clk 0:00:37]} 20. Nxd5 {[%clk 0:00:58]}  Qxd5 {[%clk 0:00:38]} 21. Nb5 {[%clk 0:00:56]}  Qd7 {[%clk 0:00:39]} 22. Qb3 {[%clk 0:00:51]}  Nd5 {[%clk 0:00:38]} 23. Rc1 {[%clk 0:00:47]}  Rc8 {[%clk 0:00:37]} 24. h4 {[%clk 0:00:46]}  Bf6 {[%clk 0:00:32]} 25. h5 {[%clk 0:00:44]}  Rc6 {[%clk 0:00:32]} 26. a4 {[%clk 0:00:41]}  Rd8 {[%clk 0:00:29]} 27. Be5 {[%clk 0:00:34]}  Bxe5 {[%clk 0:00:28]} 28. dxe5 {[%clk 0:00:35]}  Nf4 {[%clk 0:00:28]} 29. Nd6 {[%clk 0:00:32]}  Rxc1 {[%clk 0:00:25]} 30. Rxc1 {[%clk 0:00:33]}  Ne2+ {[%clk 0:00:25]} 0-1


[Site "https://www.chess.com"]